Cogmind - Beta 9.4 @@@ ROGUE MODE // 2020.01.10 @ 21:59:49 // Winter2019/RPGLIKE Player: Rumbl3 Result: Destroyed by D-53 Grenadier with Mini Grenade Launcher Performance ------------- Evolutions (0) 0 Regions Visited (2) 400 Robots Destroyed (16) 80 Value Destroyed (140) 140 Prototype IDs (0) 0 Alien Tech Used (0) 0 Bonus (-28) -28 TOTAL SCORE: 592 Bonus ------- Friendly Fire -28 Cogmind --------- Core Integrity 0/600 Matter 241/300 Energy 251/265 System Corruption 0% Temperature Cool (51) Movement Hovering (56) Location -10/Mines Parts ------- > --- POWER (1) -------- Improved Ion Engine > --- PROPULSION (2) --- Hover Unit Hover Unit > --- UTILITY (2) ------ Improved Terrain Scanner Seismic Analyzer > --- WEAPON (2) ------- Beam Rifle Assault Rifle > --- INVENTORY (2) ---- Targeting Computer Grenade Launcher Peak State ------------ > --- POWER ------------ Improved Ion Engine > --- PROPULSION ------- Hover Unit Hover Unit > --- UTILITY ---------- Improved Terrain Scanner Seismic Analyzer > --- WEAPON ----------- Beam Rifle Assault Rifle > --- INVENTORY -------- Targeting Computer Grenade Launcher [Rating: 10] Favorites ----------- Power Ion Engine Engine Ion Engine Propulsion Hover Unit Leg Aluminum Leg Wheel Wheel Hover Unit Hover Unit Utility Improved Terrain Scanner Device Improved Terrain Scanner Processor Seismic Analyzer Weapon Assault Rifle Energy Gun Beam Rifle Ballistic Gun Assault Rifle Launcher Grenade Launcher Build | -11 -10 -10 ------- Run | Scr Mat Min Slots Evolved 3 | 3 . . Power . | . . . Propulsion 1 | 1 . . Utility 1 | 1 . . Weapon 1 | 1 . . Parts Attached 14 | 6 1 7 Power 1 | . . 1 Engine 1 | . . 1 Core . | . . . Reactor . | . . . Propulsion 4 | 2 1 1 Treads . | . . . Leg . | . . . Wheel 2 | 2 . . Hover 2 | . 1 1 Flight . | . . . Utility 2 | 2 . . Device 1 | 1 . . Storage . | . . . Processor 1 | 1 . . Hackware . | . . . Protection . | . . . Artifact . | . . . Weapon 7 | 2 . 5 Energy Gun 2 | 1 . 1 Energy Cannon . | . . . Ballistic Gun 3 | 1 . 2 Ballistic Cannon . | . . . Launcher 2 | . . 2 Special Weapon . | . . . Impact Weapon . | . . . Slashing Weapon . | . . . Piercing Weapon . | . . . Special Melee Weapon . | . . . Unidentified Prototypes . | . . . Parts Lost . | . . . Power . | . . . Propulsion . | . . . Utility . | . . . Weapon . | . . . Highest Loss Streak . | . . . Average Slot Usage (%) 100 | . 100 100 Engine 14 | . 14 14 Wheel 9 | . 26 3 Hover 18 | . 2 24 Device 14 | . 14 14 Processor 14 | . 14 14 Energy Gun 14 | . 14 14 Ballistic Gun 13 | . 14 12 Naked Turns . | . . . Heaviest Build 14 | 10 10 14 Greatest Support 25 | 25 25 17 Greatest Overweight (x) . | . . . Average Overweight (x) . | . . . Largest Inventory Capacity 2 | 2 2 2 Average Capacity 1 | 1 2 2 Most Carried 2 | 1 2 2 Average Carried 1 | . 1 1 Final Capacity 2 | 2 2 2 Final Carried 2 | 1 2 2 Class Distribution -------------------- 50% | Mutant 49% | Scavenger-Mutant Dominant Class ---------------- Mutant | -10/Materials Scavenger-Mutant | -10/Mines Resources | -11 -10 -10 ----------- Run | Scr Mat Min Matter Collected 412 | 314 13 85 Remotely . | . . . Salvage Created 353 | 164 30 159 Parts 20 | 10 2 8 Haulers Intercepted . | . . . Recyclers Shooed 1 | . . 1 Parts Field Recycled . | . . . Retrieved Matter . | . . . Parts Self-Destructed . | . . . Prevented . | . . . Kills | -11 -10 -10 ------- Run | Scr Mat Min Combat Hostiles Destroyed 8 | . . 8 Guns 3 | . . 3 AOE 5 | . . 5 Classes Destroyed 7 | 2 1 4 Worker 1 | . . 1 Tunneler 4 | 4 . . Recycler 2 | 1 . 1 Watcher 1 | . 1 . Swarmer 3 | . . 3 Demolisher 1 | . . 1 Assembled 4 | . . 4 Best Kill Streak 7 | 4 1 7 Combat Bots Only 5 | . . 5 Max Kills in Single Turn 2 | 1 1 2 Gunslinging . | . . . Exploded 2 | . . 2 Melee . | . . . Uniques/NPCs Destroyed . | . . . Combat | -11 -10 -10 -------- Run | Scr Mat Min Damage Taken 753 | . . 753 Core 617 | . . 617 Absorbed by Shields . | . . . Redirected to Core 480 | . . 480 Core Remaining (%) 100 | 100 . . Volleys Fired 32 | 18 1 13 Largest 2 | 2 2 2 Hottest 86 | 70 70 86 Shots Fired 64 | 36 2 26 Gun 59 | 36 2 21 Cannon . | . . . Launcher 5 | . . 5 Special . | . . . Kinetic 27 | 18 1 8 Thermal 32 | 18 1 13 Explosive 5 | . . 5 Electromagnetic . | . . . Robot Hit Streak 15 | 5 2 15 Robot Miss Streak 2 | 2 . 1 Penetration Max . | . . . Secondary Targets . | . . . Shots Hit Robots 42 | 22 1 19 Core Hits 25 | 6 1 18 Critical Hits . | . . . Critical Kills . | . . . Critical Parts Destroyed . | . . . Melee Attacks . | . . . Impact . | . . . Slashing . | . . . Piercing . | . . . Sneak Attacks . | . . . Combat Hostiles . | . . . Follow-up Attacks . | . . . Damage Inflicted 976 | 248 12 716 Guns 512 | 248 12 252 Cannons . | . . . Explosions 464 | . . 464 Melee . | . . . Ramming . | . . . Kinetic 216 | 136 . 80 Thermal 296 | 112 12 172 Explosive 464 | . . 464 Electromagnetic . | . . . Impact . | . . . Slashing . | . . . Piercing . | . . . Highest Corruption . | . . . Average Corruption . | . . . Corruption Purged . | . . . Overload Shots . | . . . Overflow Damage 74 | . . 74 Projectiles . | . . . Explosions 74 | . . 74 Melee . | . . . Knockbacks . | . . . Impact . | . . . Kinetic . | . . . Secondary . | . . . Self-Inflicted Damage 14 | . . 14 Shots 1 | . . 1 Rammed . | . . . Targets Rammed . | . . . Kicked . | . . . Crushed . | . . . Highest Temperature 119 | 54 9 119 Average Temperature 28 | 20 6 37 Received Heat Transfer 40 | . . 40 Siege Activations . | . . . Robots Corrupted . | . . . Combat Hostiles . | . . . Parts Fried . | . . . Impact Corruptions . | . . . Robots Melted . | . . . Combat Hostiles . | . . . Parts Melted . | . . . Heat Transferred 814 | 333 37 444 Parts Sabotaged . | . . . Parts Stolen . | . . . Parts Stripped . | . . . Power Chain Reactions . | . . . Missiles Intercepted . | . . . Alert | -11 -10 -10 ------- Run | Scr Mat Min Peak Influence 103 | 25 23 103 Average Influence 31 | 9 18 44 Maximum Alert Level . | . . . Low Security (%) 100 | 100 100 100 Level 1 . | . . . Level 2 . | . . . Level 3 . | . . . Level 4 . | . . . Level 5 . | . . . High Security . | . . . Max Security . | . . . Squads Dispatched . | . . . Investigation . | . . . Extermination . | . . . Reinforcement . | . . . Assault . | . . . Garrison . | . . . Intercept . | . . . Construction Impeded . | . . . Haulers Reinforced . | . . . Stealth | -11 -10 -10 --------- Run | Scr Mat Min Distress Signals . | . . . Communications Jammed . | . . . Distress Signals . | . . . Times Spotted 15 | . 3 12 Peak Tracking Total 6 | . 2 6 Tactical Retreats 1 | . . 1 Traps | -11 -10 -10 ------- Run | Scr Mat Min Traps Triggered . | . . . Indirectly . | . . . Trap Hack Attempts . | . . . Triggered . | . . . Disarmed . | . . . Reprogrammed . | . . . Reused . | . . . Traps Extracted . | . . . Installed . | . . . Triggered . | . . . Machines | -11 -10 -10 ---------- Run | Scr Mat Min Machines Disabled . | . . . Max in Single Turn . | . . . Machines Sabotaged . | . . . Garrisons Compromised . | . . . Overloaded Fab Kills . | . . . Fab Network Shutdowns . | . . . Hacking | -11 -10 -10 --------- Run | Scr Mat Min Machines Accessed . | . . . Terminals . | . . . Fabricators . | . . . Repair Stations . | . . . Recycling Units . | . . . Scanalyzers . | . . . Garrison Access . | . . . Total Hacks . | . . . Successful . | . . . Failed . | . . . Catastrophic . | . . . Database Lockouts . | . . . Manual . | . . . Terminals . | . . . Fabricators . | . . . Repair Stations . | . . . Recycling Units . | . . . Scanalyzers . | . . . Garrison Access . | . . . Terminal Hacks . | . . . Fabricator Hacks . | . . . Repair Station Hacks . | . . . Recycling Unit Hacks . | . . . Scanalyzer . | . . . Garrison Access Hacks . | . . . Unauthorized Hacks . | . . . Terminals . | . . . Fabricators . | . . . Repair Stations . | . . . Recycling Units . | . . . Scanalyzers . | . . . Garrison Access . | . . . Data Cores Recovered . | . . . Used . | . . . Hacking Detections . | . . . Full Trace Events . | . . . Feedback Events . | . . . Feedback Blocked . | . . . Robot Schematics Acquired . | . . . Robots Built . | . . . Matter . | . . . Time . | . . . Total Robot Build Rating . | . . . Part Schematics Acquired . | . . . Parts Built . | . . . Matter . | . . . Time . | . . . Total Part Build Rating . | . . . Parts Repaired . | . . . Time . | . . . Parts Recycled . | . . . Recycled Matter . | . . . Retrieved Matter . | . . . Retrieved Components . | . . . Parts Scanalyzed . | . . . Part Schematics Acquired . | . . . Parts Damaged . | . . . Bothacking | -11 -10 -10 ------------ Run | Scr Mat Min Used RIF Installer . | . . . Robots Hacked . | . . . Non-combat . | . . . Combat . | . . . Robot Hacks Applied . | . . . Relay Couplers Released . | . . . Robots Rewired . | . . . Allies Hacked . | . . . Hacks Repelled . | . . . Allies | -11 -10 -10 -------- Run | Scr Mat Min Total Allies . | . . . Largest Group . | . . . Highest-Rated Group . | . . . Highest-Rated Ally . | . . . Total Orders . | . . . Ally Attacks . | . . . Total Damage . | . . . Kills . | . . . Allies Corrupted . | . . . Allies Melted . | . . . Intel | -11 -10 -10 ------- Run | Scr Mat Min Robot Analysis Total . | . . . Derelict Logs Recovered 1 | . . 1 Drone Launches . | . . . Drone Recoveries . | . . . Exploration | -11 -10 -10 ------------- Run | Scr Mat Min Turns Passed 388 | 97 64 227 Spaces Moved 390 | 39 74 277 Core . | . . . Treads . | . . . Legs 2 | 2 . . Wheels 101 | 37 64 . Hover 287 | . 10 277 Flight . | . . . Fastest Speed 56 | 80 65 56 Average Speed 64 | 82 77 58 Slowest Speed 120 | 120 80 65 Overloaded Moves . | . . . Propulsion Burnouts . | . . . Robots Hopped . | . . . Cave-ins Triggered . | . . . Exploration Rate (%) 27 | 3 26 52 Regions Visited 2 Branch Regions 1 Pre-discovered Areas . | . . . Known Exits Taken . | . . . Unknown Exits Taken 2 | 1 1 . Scrap Searched 1 | . . 1 Spaces Dug . | . . . Terrain Destroyed 49 | . . 49 Melee . | . . . Projectile . | . . . AOE 49 | . . 49 Actions | -11 -10 -10 --------- Run | Scr Mat Min Total 459 | 65 77 317 Wait 12 | . . 12 Move 388 | 38 73 277 Hop . | . . . Pick Up 3 | 1 1 1 Fast Attach 9 | 5 1 3 Attach . | . . . Detach 2 | 1 . 1 Swap 5 | 1 . 4 Drop 6 | 1 1 4 Fire 32 | 18 1 13 Melee . | . . . Ram . | . . . Kick . | . . . Crush . | . . . Escape Stasis . | . . . Rewire . | . . . Trap . | . . . Miscellaneous 2 | . . 2 Route ------- -11/Scrapyard -10/Materials -10/Mines (discovered 1 exit: [*Mat]) History --------- Turn | Location | Event 1 | -11/Scrapyard | Discovered new exit (range 1) 3 | -11/Scrapyard | Upgraded with Propulsion slot (x1) 3 | -11/Scrapyard | Upgraded with Utility slot (x1) 3 | -11/Scrapyard | Upgraded with Weapon slot (x1) 98 | -11/Scrapyard | Entered Materials 147 | -10/Materials | Discovered new exit (range 16) 162 | -10/Materials | Entered Mines 186 | -10/Mines | Joined a pair of Derelicts in attacking an 0b10 outpost 280 | -10/Mines | Discovered new exit (range 9) 343 | -10/Mines | Assembled infested the area 349 | -10/Mines | Learned Materials trap positions 382 | -10/Mines | Core integrity fell below 50% 387 | -10/Mines | Core integrity fell below 20% 389 | -10/Mines | Destroyed by D-53 Grenadier with Mini Grenade Launcher Last Messages --------------- 00292_ Acquired 14 matter. 00343_ ALERT: Infestation in the mines, dispatching Demolisher response squad. 00345_ K-01 Serf destroyed. 00348_ Acquired 11 matter. 00349_ Acquired derelict log, extracted data. Data stored: Materials trap records. 00352_ R-06 Scavenger collects Wheel. 00356_ R-06 Scavenger destroyed. 00360_ Acquired 32 matter. 00366_ as-26467 destroyed. 00366_ Destroyed Asb. F-torch. 00369_ as-70933 destroyed. 00369_ Destroyed Asb. F-torch. 00369_ as-69379 destroyed. 00372_ as-50481 destroyed. 00375_ C-30 ARC bursts open, deploying its payload. 00375_ D-53 Grenadier unfolds itself. 00378_ The unstable cave ceiling collapses. 00389_ D-53 Grenadier destroyed. Map ----- +----------------------------------------------------+ | #??### ! | #?????#??#? ? ??????????????????????? | | ##?##??#### #?##?###### ? ?????????????????????? | | ?##?###?#?#= ####???#????????????#???????????????? | | ??#?####??# ##########?? ???? ??????????? ????? | | ####??###?# #?#???????????????????? ?????# | | ???#??##??# #???##? ???? ????????????#???## | | #????##?###### ## ??? ???????##?????#?##??? | | ??????#??#???# ## #????????????????#? ???##?# | | ?#????##??#??# ##? ??????#?#??# #?##?## | | ?##????##???## ####??# ? ?? ???##### #?##??# | | #?#????####?## ##?#?#??? ? #???##?#?? #?#??? | | ##?#???#?#??## ####??#?# #?#??###??? ??#??## | | ?#####?????## ##?#?##???#?#####?### #?#?## | | #?###??#???# #???###?#?########## ???#### | | ##?#?###??## ####?##?##?######### #???## | | #????#???## ######?##??###?#?### ##### | | ###?#???## #### #####?####?#### | | ##?##?#### #### ##?####?###### = | | ???#?##??# #### #### ### ######## ## | | ?####?##?## #### ## # # #####=##### | | ?#??###?### ##?# # =###??? | | #???#?#??# ##?# % #????# | | ??#????### #### a ##?### | | ##?###### ##### = #??##? | | #??????## #?### ##? | | ????#???# ###### @ % #?#? ? | | ?######## """ ##?# d% ## #### " | | ####### """ #?## #### ###??#??#? " | | # """ ##?## ########??###?# ?" | | # #### ###### # # ### ####??### ?? | | # ##?## #####?## ?" | | # ###?## #?#?##?#??? | | ###### ############ ##?###### ?" | | #??#?## ####???##### ## #########?? | | #?#???## ##?#?###??## ########???#??##??? | | < #??#?#?####?######??# ###?#?##?#??##??# ?? | | % #?#?###?#??#??###?#?## ##??###?#?#??#???? ?? | | #????###?#?##?#??##??#####??###?##?##?##??#??? | | #????#????#?###????#??#?####?##???##?????#???? | | ###?######??#?##?#???????##?#?????###??#??????? | | ###???#?###?#?#?????????#??#?##????????##????????? | | | | | | | | | | | | | | | | | | | +----------------------------------------------------+ Best States ------------- Heat Dissipation 25 Energy Generation 12 Energy Capacity 265 Matter Stores 300 Matter Capacity 300 Sight Range 16 Robot Scan Range 2 Terrain Scan Range 16 Terrain Scan Density 160 Resistance: KI 5 Evasion (%) 53 Item Schematics ----------------- None Robot Schematics ------------------ None Fabricated ------------ Nothing Alien Tech Used ----------------- None Achievements -------------- None Challenges ------------ None RPGLIKE | -11 -10 -10 --------- Run | Scr Mat Min Levels Raised . | . . . XP Earned 4035 | 3000 35 1000 XP Spent 3000 | 3000 . . Upgrades 10 | 10 . . Propulsion Slot 1 | 1 . . Utility Slot 1 | 1 . . Weapon Slot 1 | 1 . . Mass Support 1 | 1 . . Inventory Capacity 2 | 2 . . Sensor Range 1 | 1 . . Terrain Scan Density 1 | 1 . . Ranged Accuracy 1 | 1 . . KI Resistance % 1 | 1 . . Protomatter Created . | . . . Integrity Restored 24 | . . 24 Parts 24 | . . 24 Protomatter Decayed 89 | . . 89 Game ------ Seed RestorationGuidanceTerrabomb Manual? 0 Play Time 00:09:02 Cumulative 361.1 hours Start 2020.01.10 @ 21:50:00 End 2020.01.10 @ 21:59:49 Sessions 1 Manual Loads 0 Difficulty Rogue Special Mode Winter2019/RPGLIKE Game No. 141 Rogue 141 Adventurer 0 Explorer 0 Win Type - Total 12 Types 8/1/1/2/0/0/0 Lore% 88 Gallery% 85 Achievement% 67 Wizard Run 0 Options --------- ASCII 0 Keyboard 0 Movement Numpad Keybinds 0 Fullscreen 0 Font 14/Dina Map View 76x50 Tactical HUD 1 Map Filters NONE Filters NONE Steam 1 RUN: 7ccd3782-1d16-4e0e-a0a4-f77136ef635e